fUST/lending_fUST_20241029
["ID","MTS","AMOUNT","RATE_DAILY","PERIOD"]
[340965746,1730170241558,-151.0,0.00024626,7]
[340965747,1730170241567,-151.0,0.00024626,7]
[340965748,1730170241576,-3000.0,0.00024626,2]
[340965749,1730170241585,-3000.0,0.00024626,2]
[340965750,1730170241595,-3000.0,0.00024626,2]
[340965751,1730170241605,-2730.75323233,0.00024626,2]
[340965766,1730170243960,-500.0,0.00024398,2]
[340965767,1730170243970,-500.0,0.00024398,2]
[340965768,1730170243979,-500.0,0.00024398,2]
[340965769,1730170243988,-500.0,0.00024398,2]
[340965770,1730170243997,-500.0,0.00024398,2]
[340965771,1730170244007,-500.0,0.00024398,2]
[340965772,1730170244016,-500.0,0.00024398,2]
[340965773,1730170244025,-500.0,0.00024398,2]
[340965774,1730170244034,-500.0,0.00024398,2]
[340965775,1730170244043,-15.08442024,0.00024398,2]
[340965776,1730170244210,-273.89798281,0.00024398,2]
[340965777,1730170244222,-211.01759695,0.00024398,2]
[340965778,1730170244231,-500.0,0.00024398,2]
[340965779,1730170244241,-500.0,0.00024398,2]
[340965780,1730170244250,-500.0,0.00024398,2]
[340965781,1730170244260,-465.785275,0.00024398,2]
[340965798,1730170247266,-34.214725,0.00024398,2]
[340965799,1730170247276,-500.0,0.00024398,2]
[340965800,1730170247287,-500.0,0.00024398,2]
[340965801,1730170247296,-500.0,0.00024398,2]
[340965802,1730170247306,-500.0,0.00024398,2]
[340965803,1730170247315,-500.0,0.00024398,2]
[340965804,1730170247325,-500.0,0.00024398,2]
[340965805,1730170247334,-500.0,0.00024398,2]
[340965806,1730170247344,-500.0,0.00024398,2]
[340965807,1730170247353,-500.0,0.00024398,2]
[340965808,1730170247363,-464.195275,0.00024398,2]
[340965810,1730170293068,172.9736759,0.00013973,2]
[340965814,1730170330989,500.0,0.00035499,30]
[340965815,1730170332124,500.0,0.00035499,30]
[340965816,1730170333098,500.0,0.00035499,30]
[340965817,1730170334012,500.0,0.00035499,30]
[340965818,1730170334966,500.0,0.00035499,30]
[340965819,1730170335898,500.0,0.00035499,30]
[340965820,1730170336737,500.0,0.00035499,30]
[340965821,1730170337609,500.0,0.00035499,30]
[340965822,1730170338425,500.0,0.00035499,30]
[340965823,1730170339260,500.0,0.00035499,30]
[340965835,1730170344534,500.0,0.00035499,30]
[340965836,1730170345545,500.0,0.00035499,30]
[340965838,1730170346386,500.0,0.00035499,30]
[340965839,1730170347268,500.0,0.00035499,30]
[340965840,1730170348126,500.0,0.00035499,30]
[340965841,1730170349009,500.0,0.00035499,30]
[340965842,1730170349821,500.0,0.00035499,30]
[340965843,1730170350656,500.0,0.00035499,30]
[340965844,1730170351488,500.0,0.00035499,30]
[340965845,1730170352273,500.0,0.00035499,30]
[340965849,1730170509720,999.330693,0.00035502,30]
[340965857,1730170603486,695.015,0.00035502,120]
[340965863,1730170852336,175.952627,0.00013973,2]
[340965886,1730170938932,1001.79198521,0.00035518,30]
[340965897,1730171230151,-154.81306579,0.00020453,2]
[340965898,1730171231079,-1065.49994965,0.00020453,2]
[340965899,1730171237096,-948.52247973,0.00020453,2]
[340965900,1730171252091,-831.16450483,0.00020453,2]
[340965901,1730171252112,-65.38580513,0.0002049,2]
[340965915,1730171323300,3884.51386083,0.0002011,2]
[340965917,1730171351154,-184.733944,0.00020149,2]
[340965918,1730171351175,-151.66859287,0.0002049,2]
[340965919,1730171351196,-526.9151546,0.00020688,2]
[340965920,1730171351217,-250.0,0.00020793,2]
[340965921,1730171351239,-2139.393171,0.00020816,2]
[340965922,1730171351259,-267.86861737,0.0002085,2]
[340965923,1730171351289,-250.0,0.0002085,2]
[340965924,1730171351309,-2003.8917364,0.00020902,2]
[340965925,1730171351330,-250.0,0.00020907,2]
[340965926,1730171351350,-1000.0,0.00020964,2]
[340965927,1730171351370,-250.0,0.00020964,2]
[340965928,1730171351391,-250.0,0.00021021,2]
[340965929,1730171351411,-250.0,0.00021078,2]
[340965930,1730171351433,-250.0,0.00021135,2]
[340965931,1730171351456,-250.0,0.00021192,2]
[340965932,1730171351478,-250.0,0.00021249,2]
[340965933,1730171351500,-250.0,0.00021306,2]
[340965934,1730171351522,-160.033076,0.00021352,2]
[340965935,1730171351544,-250.0,0.00021363,2]
[340965936,1730171351565,-160.033076,0.00021368,2]
[340965937,1730171351586,-160.033076,0.00021383,2]
[340965938,1730171351608,-160.033076,0.00021398,2]
[340965939,1730171351629,-300.0,0.00021411,2]
[340965940,1730171351652,-300.0,0.00021412,2]
[340965941,1730171351674,-160.033076,0.00021413,2]
[340965942,1730171351696,-250.0,0.0002142,2]
[340965943,1730171351718,-160.033076,0.00021429,2]
[340965944,1730171351738,-160.033076,0.00021444,2]
[340965945,1730171351759,-160.033076,0.00021459,2]
[340965946,1730171351785,-250.0,0.00021477,2]
[340965947,1730171351806,-2139.393171,0.00021501,2]
[340965948,1730171351829,-250.0,0.00021534,2]
[340965949,1730171351851,-250.0,0.00021591,2]
[340965950,1730171351874,-250.0,0.00021648,2]
[340965951,1730171351896,-250.0,0.00021705,2]
[340965952,1730171351917,-250.0,0.00021763,2]
[340965953,1730171351938,-250.0,0.0002182,2]
[340965954,1730171351959,-250.0,0.00021877,2]
[340965955,1730171351980,-167.711321,0.00021918,2]
[340965956,1730171352001,-167.0,0.00022,2]
[340965957,1730171352021,-209.36434,0.00022032,2]
[340965958,1730171352043,-8396.78061769,0.00022139,2]
[340965959,1730171352063,-2139.393171,0.00022186,2]
[340965960,1730171352084,-5000.0,0.00022208,2]
[340965961,1730171352106,-5207.53927246,0.00022209,2]
[340965962,1730171363333,-3196.2566407,0.00020567,2]
[340965963,1730171363354,-149.58718728,0.00022209,2]
[340965965,1730171427144,166.92899188,0.00021643,2]
[340966015,1730171432459,-421.61019892,0.00021643,2]
[340966016,1730171432469,-300.0,0.00022208,2]
[340966017,1730171432480,-5000.0,0.00022208,2]
[340966018,1730171432490,-250.0,0.00022239,2]
[340966019,1730171432499,-24900.0,0.00022292,2]
[340966020,1730171432508,-500.0,0.000223,2]
[340966021,1730171432517,-500.0,0.000223,2]
[340966022,1730171432527,-500.97346014,0.000223,2]
[340966023,1730171432541,-501.12740691,0.000223,2]
[340966024,1730171432551,-500.0,0.000223,2]
[340966025,1730171432560,-339.51206995,0.000223,2]
[340966026,1730171432569,-500.0,0.000223,2]
[340966027,1730171432579,-168.87755557,0.000223,2]
[340966028,1730171432588,-5000.0,0.00022566,2]
[340966029,1730171432598,-569.8218024,0.00022696,2]
[340966030,1730171432607,-167.711321,0.00022773,2]
[340966031,1730171432616,-283.28656463,0.000228,2]
[340966032,1730171432626,-283.28656462,0.000228,2]
[340966033,1730171432635,-283.28656462,0.000228,2]
[340966034,1730171432644,-1000.0,0.00023,2]
[340966035,1730171432653,-265.386413,0.00023371,2]
[340966036,1730171432663,-265.386413,0.00023377,2]
[340966037,1730171432672,-265.386413,0.00023383,2]
[340966038,1730171432681,-265.386413,0.00023389,2]
[340966039,1730171432690,-265.386413,0.00023395,2]
[340966040,1730171432700,-265.386413,0.00023401,2]
[340966041,1730171432709,-265.386413,0.00023408,2]
[340966042,1730171432718,-1040.31844179,0.00023408,2]
[340966043,1730171432728,-265.386413,0.00023414,2]
[340966044,1730171432738,-265.386413,0.0002342,2]
[340966045,1730171432747,-265.386413,0.00023426,2]
[340966046,1730171432758,-265.386413,0.00023432,2]
[340966047,1730171432769,-265.386413,0.00023438,2]
[340966048,1730171432778,-265.386413,0.00023444,2]
[340966049,1730171432790,-265.386413,0.00023451,2]
[340966050,1730171432801,-265.386413,0.00023457,2]
[340966051,1730171432810,-265.386413,0.00023463,2]
[340966052,1730171432819,-265.386413,0.00023469,2]
[340966053,1730171432828,-265.386413,0.00023475,2]
[340966054,1730171432839,-265.386413,0.00023481,2]
[340966055,1730171432849,-265.386413,0.00023487,2]
[340966056,1730171432859,-362.44523664,0.0002354,2]
[340966057,1730171432869,-500.0,0.0002354,2]
[340966058,1730171432879,-500.0,0.0002354,2]
[340966059,1730171432889,-500.8744801,0.0002354,2]
[340966060,1730171432898,-500.0,0.0002354,2]
[340966061,1730171432907,-500.0,0.0002354,2]
[340966062,1730171432916,-500.0,0.0002354,2]
[340966063,1730171432926,-500.0,0.0002354,2]
[340966064,1730171433021,-172.55927164,0.0002354,2]
[340966065,1730171433035,-500.0,0.0002354,2]
[340966066,1730171433045,-167.711321,0.00023627,2]
[340966067,1730171433055,-529.823,0.00023638,2]
[340966068,1730171433064,-1147.0,0.00023638,2]
[340966069,1730171433073,-2395.0,0.00023638,2]
[340966070,1730171433084,-215.69,0.00023659,3]
[340966071,1730171433093,-647.12,0.00023659,3]
[340966072,1730171433102,-158.13107438,0.00023668,2]
[340966073,1730171433111,-500.0,0.00023668,2]
[340966074,1730171433121,-500.0,0.00023668,2]
[340966075,1730171433130,-500.0,0.00023668,2]
[340966076,1730171433140,-500.0,0.00023668,2]
[340966077,1730171433149,-500.0,0.00023668,2]
[340966078,1730171433159,-500.0,0.00023668,2]
[340966079,1730171433168,-500.0,0.00023668,2]
[340966080,1730171433177,-500.0,0.00023668,2]
[340966081,1730171433186,-500.0,0.00023668,2]
[340966082,1730171433195,-500.0,0.00023668,2]
[340966083,1730171433205,-500.0,0.00023668,2]
[340966084,1730171433215,-500.0,0.00023668,2]
[340966085,1730171433224,-500.0,0.00023668,2]
[340966086,1730171433233,-500.0,0.00023668,2]
[340966087,1730171433243,-1000.0,0.0002367,2]
[340966088,1730171433252,-1000.0,0.0002367,2]
[340966089,1730171433262,-1000.0,0.0002367,2]
[340966090,1730171433271,-511.85644181,0.0002367,2]
[340966091,1730171433281,-5000.0,0.00023702,2]
[340966092,1730171433290,-7494.55734506,0.00023766,2]
[340966093,1730171433299,-180.93311438,0.00023818,2]
[340966094,1730171433309,-807.0,0.00023852,2]
[340966095,1730171433318,-7494.55734506,0.00023887,2]
[340966096,1730171433328,-862.77,0.00023898,3]
[340966097,1730171433337,-431.39,0.00023898,3]
[340966098,1730171433347,-291.89588066,0.00023907,2]
[340966099,1730171433357,-213.63014699,0.00023907,2]
[340966100,1730171433366,-300.41515787,0.00023907,2]
[340966101,1730171433375,-500.0,0.00023907,2]
[340966102,1730171433385,-585.10124499,0.00023907,2]
[340966103,1730171433394,-80683.8565863,0.00023908,3]
[340966104,1730171433403,-34949.1612789,0.00023908,3]
[340966105,1730171433412,-5000.0,0.00023918,2]
[340966106,1730171433421,-5000.0,0.00023918,2]
[340966107,1730171433430,-423.449,0.0002394,2]
[340966108,1730171433440,-180.93311435,0.00023972,2]
[340966109,1730171433449,-1619.36792662,0.00024,2]
[340966110,1730171433459,-180.93311435,0.00024125,2]
[340966111,1730171433469,-5000.0,0.00024158,2]
[340966112,1730171433479,-7494.55734506,0.00024215,2]
[340966113,1730171433489,-242.785451,0.00024219,2]
[340966114,1730171433499,-1000.0,0.00024279,2]
[340966115,1730171433509,-180.93311435,0.00024279,2]
[340966116,1730171433519,-80683.8565863,0.00024351,3]
[340966117,1730171433528,-34949.1612789,0.00024351,3]
[340966118,1730171433538,-5000.0,0.00024361,2]
[340966119,1730171433547,-449.87882632,0.00024361,2]
[340966140,1730171438492,-500.0,0.00023668,2]
[340966141,1730171438502,-500.0,0.00023668,2]
[340966142,1730171438512,-500.0,0.00023668,2]
[340966143,1730171438521,-500.0,0.00023668,2]
[340966144,1730171438533,-500.0,0.00023668,2]
[340966145,1730171438543,-226.59373917,0.00023668,2]
[340966146,1730171438552,-500.0,0.00023668,2]
[340966147,1730171438562,-590.20481044,0.00023668,2]
[340966148,1730171438571,-648.21948528,0.00023668,2]
[340966149,1730171438580,-500.0,0.00023668,2]
[340966150,1730171438589,-500.0,0.00023668,2]
[340966151,1730171438599,-500.0,0.00023668,2]
[340966152,1730171438608,-500.0,0.00023668,2]
[340966153,1730171438618,-500.0,0.00023668,2]
[340966154,1730171438627,-500.0,0.00023668,2]
[340966155,1730171438636,-500.0,0.00023668,2]
[340966156,1730171438646,-500.0,0.00023668,2]
[340966157,1730171438655,-500.0,0.00023668,2]
[340966158,1730171438665,-500.0,0.00023668,2]
[340966159,1730171438674,-500.0,0.00023668,2]
[340966160,1730171438684,-500.0,0.00023668,2]
[340966161,1730171438693,-500.0,0.00023668,2]
[340966162,1730171438702,-500.0,0.00023668,2]
[340966163,1730171438713,-500.0,0.00023668,2]
[340966164,1730171438722,-500.0,0.00023668,2]
[340966165,1730171438731,-500.0,0.00023668,2]
[340966166,1730171438740,-500.0,0.00023668,2]
[340966167,1730171438749,-500.0,0.00023668,2]
[340966168,1730171438759,-500.0,0.00023668,2]
[340966169,1730171438769,-500.0,0.00023668,2]
[340966170,1730171438778,-500.0,0.00023668,2]
[340966171,1730171438790,-500.0,0.00023668,2]
[340966172,1730171438802,-500.0,0.00023668,2]
[340966173,1730171438811,-500.0,0.00023668,2]
[340966174,1730171438821,-500.0,0.00023668,2]
[340966175,1730171438830,-500.0,0.00023668,2]
[340966176,1730171438839,-500.0,0.00023668,2]
[340966177,1730171438849,-500.0,0.00023668,2]
[340966178,1730171438858,-500.0,0.00023668,2]
[340966179,1730171438867,-500.0,0.00023668,2]
[340966180,1730171438877,-500.0,0.00023668,2]
[340966181,1730171438886,-500.0,0.00023668,2]
[340966182,1730171438895,-500.0,0.00023668,2]
[340966183,1730171438904,-500.0,0.00023668,2]
[340966184,1730171438914,-628.01991346,0.00023668,2]
[340966185,1730171438923,-500.0,0.00023668,2]
[340966186,1730171438932,-500.0,0.00023668,2]
[340966187,1730171438942,-500.0,0.00023668,2]
[340966188,1730171438951,-500.0,0.00023668,2]
[340966189,1730171438960,-500.0,0.00023668,2]
[340966190,1730171438970,-4550.12117368,0.00024361,2]
[340966191,1730171438980,-5000.0,0.00024361,2]
[340966192,1730171438989,-4259.51608808,0.00024361,2]
[340966193,1730171438999,-500.0,0.00024373,2]
[340966194,1730171439008,-604.0082647,0.00024373,2]
[340966195,1730171439017,-500.0,0.00024373,2]
[340966196,1730171439027,-212.27911916,0.00024373,2]
[340966197,1730171439114,-500.0,0.00024373,2]
[340966198,1730171439125,-500.0,0.00024373,2]
[340966199,1730171439135,-160.0598727,0.00024373,2]
[340966200,1730171439144,-201.08129219,0.00024373,2]
[340966201,1730171439154,-499.84940566,0.00024373,2]
[340966202,1730171439163,-160.00902419,0.00024373,2]
[340966203,1730171439172,-151.937808,0.00024376,7]
[340966204,1730171439181,-128.25833783,0.00024376,7]
[340966205,1730171439230,-22.74166217,0.00024376,7]
[340966206,1730171439240,-151.0,0.00024376,7]
[340966207,1730171439248,-244.457531,0.00024376,7]
[340966208,1730171439258,-151.0,0.00024376,7]
[340966209,1730171439267,-151.0,0.00024376,7]
[340966210,1730171439276,-1745.45666777,0.00024376,3]
[340966211,1730171439290,-499.77566816,0.00024376,3]
[340966261,1730171443830,-152.251899,0.00024376,7]
[340966262,1730171443840,-331.425105,0.00024376,7]
[340966264,1730171443851,-151.0,0.00024376,7]
[340966266,1730171443860,-16777.33395952,0.00024376,3]
[340966268,1730171443872,-302.8671087,0.00024376,3]
[340966285,1730171446300,-154.006201,0.00024376,7]
[340966287,1730171446310,-61358.42318215,0.00024376,3]
[340966288,1730171446320,-34949.1612789,0.00024376,3]
[340966290,1730171446329,-151.0,0.00024379,7]
[340966291,1730171446339,-151.0,0.00024379,7]
[340966292,1730171446348,-151.0,0.00024379,7]
[340966293,1730171446358,-151.0,0.00024379,7]
[340966294,1730171446368,-290.627201,0.00024379,7]
[340966295,1730171446377,-151.0,0.00024379,7]
[340966296,1730171446388,-151.0,0.00024379,7]
[340966297,1730171446398,-151.0,0.00024379,7]
[340966298,1730171446408,-151.0,0.00024379,7]
[340966299,1730171446417,-151.0,0.00024379,7]
[340966300,1730171446427,-151.0,0.00024379,7]
[340966301,1730171446437,-174.339899,0.00024379,7]
[340966302,1730171446446,-151.0,0.00024379,7]
[340966303,1730171446456,-164.744505,0.00024379,7]
[340966304,1730171446466,-151.0,0.00024379,7]
[340966305,1730171446476,-584.36414,0.00024379,7]
[340966306,1730171446486,-584.36414,0.00024379,7]
[340966307,1730171446496,-500.0,0.00024388,2]
[340966308,1730171446506,-128641.36558568,0.00024389,3]
[340966435,1730171912594,175.456135,0.00013973,2]
[340966443,1730171944024,280.0,0.000201,2]
[340966591,1730172361605,319.19,0.00035496,30]
[340966603,1730172427129,-163.98130657,0.00021927,2]
[340966605,1730172432088,-3.73001443,0.00021927,2]
[340966606,1730172432115,-266.0,0.00022,2]
[340966607,1730172432139,-156.0,0.00022,2]
[340966608,1730172432164,-165.0,0.00022,2]
[340966609,1730172432191,-266.0,0.00022192,2]
[340966610,1730172432215,-693.25611556,0.00022354,2]
[340966611,1730172437115,-142.45551224,0.00022354,2]
[340966612,1730172437136,-170.3357065,0.00022664,2]
[340966613,1730172437158,-300.0,0.00022886,2]
[340966614,1730172437180,-5000.0,0.00022887,2]
[340966615,1730172437204,-8796.16606299,0.00022888,2]
[340966616,1730172440090,-4952.3159259,0.00022888,2]
[340966619,1730172480562,618.95397086,0.00035496,60]
[340966626,1730172517457,503.05400761,0.00035496,120]
[340966630,1730172555096,-2770.18508936,0.00020377,2]
[340966631,1730172555193,-245.06185436,0.000219,2]
[340966632,1730172555217,-156.0,0.00022,2]
[340966633,1730172555241,-872.12212734,0.0002201,16]
[340966634,1730172557106,-982.03022673,0.0002201,16]
[340966635,1730172557130,-300.0,0.00022399,2]
[340966636,1730172557151,-914.39561451,0.000224,2]
[340966652,1730172599131,169.70328172,0.00013973,2]
[340966653,1730172599153,5.75285328,0.00013973,2]
[340966694,1730172639355,-8291.23079231,0.000224,2]
[340966695,1730172639364,-300.0,0.00022911,2]
[340966696,1730172639373,-2759.29305656,0.00022912,2]
[340966726,1730172643606,-9147.76157964,0.00022912,2]
[340966740,1730172671147,107.50291136,0.00016438,30]
[340966741,1730172671169,169.70328172,0.00016438,30]
[340966742,1730172671191,222.79380692,0.00016438,30]
[340966743,1730172671598,565.57738445,0.00016438,30]
[340966754,1730173094785,223.13804732,0.00035495,120]
[340966755,1730173106866,172.973671,0.00013973,2]
[340966760,1730173628131,-250.0,0.0002163,2]
[340966761,1730173628155,-250.0,0.00021689,2]
[340966762,1730173628178,-250.0,0.00021749,2]
[340966763,1730173628203,-250.0,0.00021808,2]
[340966764,1730173628225,-217.0543983,0.00021826,2]
[340966765,1730173628251,-250.0,0.00021867,2]
[340966766,1730173628275,-250.0,0.00021926,2]
[340966767,1730173628297,-250.0,0.00021986,2]
[340966768,1730173628320,-165.0,0.00022,2]
[340966769,1730173628341,-310.0,0.00022,2]
[340966770,1730173628363,-250.0,0.00022045,2]
[340966771,1730173628384,-824.4025043,0.00022054,2]
[340966772,1730173628407,-250.0,0.00022104,2]
[340966773,1730173628430,-250.0,0.00022164,2]
[340966774,1730173628458,-310.0,0.00022192,2]
[340966775,1730173628481,-140.71187514,0.00022223,2]
[340966776,1730173646131,-109.28812486,0.00022223,2]
[340966777,1730173646155,-250.0,0.00022282,2]
[340966778,1730173646179,-103.25022946,0.00022342,2]
[340966779,1730173651127,-271.88056213,0.00021543,2]
[340966780,1730173652078,-700.68401687,0.00021543,2]
[340966781,1730173652100,-332.33685049,0.00022228,2]
[340966783,1730173671442,175.456135,0.00013973,2]
[340966786,1730173737353,2750.42403433,0.00035496,60]
[340966789,1730173748095,-163.02502174,0.00021289,2]
[340966791,1730173760092,-21.70892226,0.00021289,2]
[340966792,1730173760115,-159.47510746,0.00022197,2]
[340966793,1730173767157,-140.52489254,0.00022197,2]
[340966794,1730173767179,-300.0,0.00022197,2]
[340966795,1730173767205,-802.06343081,0.00022198,2]
[340966864,1730173833075,-300.0,0.00022197,2]
[340966865,1730173833085,-300.0,0.00022197,2]
[340966866,1730173833095,-1529.95,0.00022198,2]
[340966881,1730173838935,-266.47535616,0.00022198,2]
[340966914,1730173847130,-114.78009637,0.00022,2]
[340966964,1730174316450,173.111302,0.00013973,2]
[340967002,1730174683797,248.2933674,0.0001,2]
[340967003,1730174719812,1501.9164245,0.00020049,2]
[340967004,1730174726822,537.597435,0.0001985,2]
[340967005,1730174736118,-155.21699905,0.00020358,2]
[340967020,1730174792035,985.9775706,0.00019825,2]
[340967022,1730174823114,1305.8649504,0.00019825,2]
[340967023,1730174828089,-35.30669995,0.00020358,2]
[340967024,1730174828114,-190.523699,0.00020414,2]
[340967025,1730174828137,-113.39043999,0.0002047,2]
[340967026,1730174833107,-77.13325901,0.0002047,2]
[340967027,1730174833133,-190.523699,0.00020526,2]
[340967028,1730174833154,-537.597435,0.00020535,2]
[340967029,1730174833176,-190.523699,0.00020581,2]
[340967030,1730174833200,-190.523699,0.00020637,2]
[340967031,1730174833220,-190.523699,0.00020693,2]
[340967032,1730174833243,-100.61453666,0.00020749,2]
[340967033,1730174833280,-89.90916234,0.00020749,2]
[340967034,1730174833301,-95.94953932,0.00020805,2]
[340967041,1730174949090,-300.0,0.00020247,2]
[340967042,1730174949111,-193.68901008,0.00020247,2]
[340967043,1730174952090,-106.31098992,0.00020247,2]
[340967044,1730174952111,-17933.78614234,0.00020248,2]
[340967045,1730174954086,-6617.970294,0.00020248,2]
[340967046,1730174966140,-348.24356366,0.00020248,2]
[340967047,1730174966162,-94.57415968,0.00020805,2]
[340967048,1730174966183,-1712.0891596,0.00020855,2]
[340967049,1730174966204,-190.523699,0.00020861,2]
[340967050,1730174966226,-190.523699,0.00020916,2]
[340967051,1730174966251,-190.523699,0.00020972,2]
[340967052,1730174966271,-500.0,0.00021,2]
[340967053,1730174966293,-190.523699,0.00021028,2]
[340967054,1730174966313,-190.523699,0.00021084,2]
[340967055,1730174966335,-190.523699,0.0002114,2]
[340967056,1730174966356,-190.523699,0.00021196,2]
[340967057,1730174966377,-8460.72097678,0.0002121,2]
[340967058,1730174966398,-537.597435,0.0002122,2]
[340967059,1730174966419,-190.523699,0.00021251,2]
[340967060,1730174966439,-190.523699,0.00021307,2]
[340967061,1730174966460,-417.559,0.0002131,2]
[340967062,1730174966482,-190.523699,0.00021363,2]
[340967063,1730174966504,-190.523699,0.00021419,2]
[340967064,1730174966526,-822.9918885,0.00021917,2]
[340967065,1730174966548,-3218.30441574,0.00021917,2]
[340967066,1730174966575,-170.7058308,0.00021918,2]
[340967067,1730174966617,-165.0,0.00022,2]
[340967068,1730174966659,-1234.0,0.00022,2]
[340967069,1730174966698,-218.0,0.00022,2]
[340967070,1730174966733,-380.0,0.00022,2]
[340967071,1730174966772,-169.0,0.00022,2]
[340967072,1730174966810,-420.0,0.00022041,2]
[340967073,1730174966846,-6267.83290639,0.00022047,2]
[340967098,1730175031750,-299.03725367,0.00022083,2]
[340967099,1730175031760,-218.0,0.00022192,2]
[340967100,1730175031770,-191.265477,0.00022594,2]
[340967101,1730175031780,-187.208,0.00022894,2]
[340967102,1730175031790,-2000.0,0.00023,2]
[340967103,1730175031800,-165.0,0.00023014,2]
[340967104,1730175031809,-218.0,0.00023014,2]
[340967105,1730175031819,-177.717547,0.000239,2]
[340967106,1730175031829,-300.0,0.00023917,2]
[340967107,1730175031839,-300.0,0.00023917,2]
[340967108,1730175031849,-215.1722285,0.00023918,2]
[340967109,1730175031859,-210.8524058,0.00023918,2]
[340967110,1730175031868,-210.8524058,0.00023918,2]
[340967111,1730175031878,-210.8524058,0.00023918,2]
[340967112,1730175031887,-210.8524058,0.00023918,2]
[340967113,1730175031896,-210.8524058,0.00023918,2]
[340967114,1730175031906,-210.8524058,0.00023918,2]
[340967115,1730175031915,-500.0,0.00023999,2]
[340967116,1730175031925,-500.0,0.00023999,2]
[340967117,1730175031934,-500.0,0.00023999,2]
[340967118,1730175031944,-500.0,0.00023999,2]
[340967119,1730175031955,-500.0,0.00023999,2]
[340967120,1730175031964,-500.0,0.00023999,2]
[340967121,1730175031974,-500.0,0.00023999,2]
[340967122,1730175031983,-604.8425017,0.00023999,2]
[340967123,1730175031993,-577.09032021,0.00023999,2]
[340967124,1730175032003,-343.67797319,0.00023999,2]
[340967125,1730175032012,-201.35049468,0.00023999,2]
[340967126,1730175032021,-500.0,0.00023999,2]
[340967127,1730175032031,-500.0,0.00023999,2]
[340967128,1730175032047,-548.661259,0.00024,2]
[340967129,1730175032056,-2019.28,0.00024,2]
[340967130,1730175032065,-10576.43113125,0.00024,2]
[340967131,1730175032081,-3819.50567599,0.00024,2]
[340967158,1730175038058,-17.24633323,0.00024,2]
[340967169,1730175050944,3305.0,0.00035502,30]
[340967171,1730175355942,173.088363,0.00013973,2]
[340967172,1730175358243,7703.28380604,0.00012,2]
[340967173,1730175371127,2157.83777269,0.0001,2]
[340967180,1730175712242,12955.6713873,0.00035501,30]
[340967202,1730176033424,-187.500002,0.00021535,2]
[340967203,1730176033445,-219.00525781,0.00021623,2]
[340967204,1730176040076,-1640.1353953,0.00021623,2]
[340967205,1730176045101,-2319.30654689,0.00021623,2]
[340967206,1730176045122,-283.023458,0.00021644,2]
[340967207,1730176045145,-187.500002,0.00021909,2]
[340967208,1730176045165,-190.922706,0.00021936,2]
[340967209,1730176045187,-187.500002,0.00022283,2]
[340967210,1730176045207,-4178.4472,0.00022308,2]
[340967211,1730176045227,-300.0,0.00022499,2]
[340967212,1730176045248,-300.0,0.00022499,2]
[340967213,1730176045270,-5000.0,0.000225,2]
[340967214,1730176045291,-365.77417266,0.00022501,2]
[340967215,1730176045313,-2823.65867118,0.00022501,2]
[340967216,1730176048119,-500.1706857,0.00022501,2]
[340967217,1730176100819,185.67509527,0.000123,2]
[340967218,1730176102794,6595.51947067,0.000125,2]
[340967221,1730176137033,172.588396,0.00013973,2]
[340967222,1730176154111,-905.9120151,0.0002061,2]
[340967223,1730176154133,-300.0,0.00021981,2]